Cogmind - Beta 13 @@@ ROGUE MODE // 2024.03.06 @ 20:20:22 Player: LU-1G1 Result: Destroyed by Q5-UA0(R) with Subdweller Machine Gun Performance ------------- Evolutions (0) 0 Regions Visited (3) 600 Robots Destroyed (43) 215 Value Destroyed (1188) 1188 Prototype IDs (0) 0 Alien Tech Used (0) 0 Bonus (-159) -159 TOTAL SCORE: 1844 Bonus ------- Friendly Fire -159 Cogmind --------- Core Integrity 0/250 Matter 300/300 Energy 94/100 System Corruption 2% Temperature Cool (0) Movement Treading (240) Ox1 Location -10/Subcaves Parts ------- > --- POWER (1) -------- (None) > --- PROPULSION (2) --- Light Treads > --- UTILITY (2) ------ Large Storage Unit Seismic Detector > --- WEAPON (2) ------- Makeshift Axe Makeshift Axe > --- INVENTORY (15) --- Improved Heat Sink Huge Storage Unit Makeshift Trap Scanner Light Armor Plating Makeshift Light Armor Plating Particle Gun Subdweller Laser Subdweller Beam Cannon Light Assault Rifle Light Assault Rifle Subdweller Machine Gun Subdweller Machine Gun Subdweller Machine Gun Grenade Launcher Peak State ------------ > --- POWER ------------ Light Nuclear Core > --- PROPULSION ------- Light Treads Light Treads > --- UTILITY ---------- Large Storage Unit Makeshift Light Armor Plating > --- WEAPON ----------- Makeshift Axe Makeshift Axe > --- INVENTORY -------- Light Nuclear Core Improved Heat Sink Huge Storage Unit Seismic Detector Light Armor Plating EM Pulse Gun Particle Gun Subdweller Laser Light Assault Rifle Light Assault Rifle Subdweller Machine Gun Subdweller Machine Gun Subdweller Machine Gun Grenade Launcher [Rating: 20] Favorites ----------- Power Light Nuclear Core Engine Ion Engine Power Core Light Nuclear Core Propulsion Light Treads Treads Light Treads Utility Large Storage Unit Device Seismic Detector Storage Large Storage Unit Protection Light Armor Plating Weapon Light Assault Rifle Energy Gun Particle Gun Ballistic Gun Light Assault Rifle Launcher Grenade Launcher Slashing Weapon Makeshift Axe Build | -11 -10 -10 -10 ------- Run | Yrd Mat Min Sub Slots Evolved . | . . . . Power . | . . . . Propulsion . | . . . . Utility . | . . . . Weapon . | . . . . Parts Attached 36 | 7 4 4 21 Power 4 | 1 1 1 1 Engine 2 | 1 1 . . Core 2 | . . 1 1 Reactor . | . . . . Propulsion 7 | 2 2 . 3 Treads 7 | 2 2 . 3 Leg . | . . . . Wheel . | . . . . Hover . | . . . . Flight . | . . . . Utility 10 | 2 1 1 6 Device 3 | 1 . . 2 Storage 2 | 1 1 . . Processor . | . . . . Hackware . | . . . . Protection 5 | . . 1 4 Artifact . | . . . . Weapon 15 | 2 . 2 11 Energy Gun 2 | . . . 2 Energy Cannon . | . . . . Ballistic Gun 6 | 2 . 2 2 Ballistic Cannon . | . . . . Launcher 1 | . . . 1 Special Weapon . | . . . . Impact Weapon . | . . . . Slashing Weapon 6 | . . . 6 Piercing Weapon . | . . . . Special Melee Weapon . | . . . . Unidentified Prototypes . | . . . . Parts Lost 10 | . . 3 7 Power 2 | . . . 2 Propulsion 4 | . . . 4 Utility 2 | . . 1 1 Weapon 2 | . . 2 . Highest Loss Streak 2 | . . 2 2 To Critical Strikes . | . . . . Average Slot Usage (%) 99 | . 100 99 99 Engine 4 | . 14 . . Core 9 | . . 13 13 Treads 27 | . 28 28 27 Device 6 | . 14 1 4 Storage 14 | . 14 14 14 Protection 7 | . . 12 9 Ballistic Gun 17 | . 28 28 7 Launcher 2 | . . . 4 Slashing Weapon 8 | . . . 16 Naked Turns . | . . . . Heaviest Build 35 | 12 29 30 35 Greatest Support 40 | 40 40 40 40 Greatest Overweight (x) 1 | . . . 1 Average Overweight (x) . | . . . . Largest Inventory Capacity 15 | 8 15 15 15 Average Capacity 14 | 7 12 15 15 Most Carried 15 | 6 15 15 15 Average Carried 12 | 4 10 13 13 Final Capacity 15 | 8 15 15 15 Final Carried 15 | 6 15 13 14 Class Distribution -------------------- 97% | Mutant Dominant Class ---------------- Mutant | -10/Materials Mutant | -10/Mines Mutant | -10/Subcaves Resources | -11 -10 -10 -10 ----------- Run | Yrd Mat Min Sub Matter Collected 1131 | 290 289 107 445 Remotely . | . . . . Salvage Created 1529 | 78 594 264 593 Parts 96 | 5 35 14 42 Haulers Intercepted 2 | . 2 . . Recyclers Shooed 2 | . . 2 . Parts Field Recycled . | . . . . Retrieved Matter . | . . . . Parts Self-Destructed 10 | . . . 10 Prevented . | . . . . Kills | -11 -10 -10 -10 ------- Run | Yrd Mat Min Sub Combat Hostiles Destroyed 34 | . 11 5 18 Melee 8 | . . . 8 Guns 17 | . 11 5 1 AOE 9 | . . . 9 Classes Destroyed 9 | 2 3 . 4 Tunneler 1 | 1 . . . Hauler 2 | . 2 . . Recycler 2 | 1 . 1 . Watcher 2 | . 2 . . Swarmer 7 | . . . 7 Grunt 18 | . 11 5 2 Artisan 1 | . . . 1 Subdweller 9 | . . . 9 Zionite 2 | . . . 2 Best Kill Streak 4 | 2 3 3 4 Combat Bots Only 4 | . 3 2 4 Max Kills in Single Turn 2 | 1 1 1 2 Gunslinging . | . . . . Exploded 2 | . . . 2 Melee 1 | . . . 1 Uniques/NPCs Destroyed . | . . . . Combat | -11 -10 -10 -10 -------- Run | Yrd Mat Min Sub Hostile Shots Fired 141 | . 37 45 59 Missed 42 | . 10 13 19 Damage Taken 1810 | . 362 433 1015 Core 261 | . 33 30 198 Absorbed by Shields . | . . . . Core Remaining (%) 100 | 100 . . . Volleys Fired 110 | 5 56 24 25 Largest 2 | 2 2 2 2 Hottest 95 | 40 40 40 95 Shots Fired 196 | 10 112 48 26 Gun 178 | 10 112 48 8 Cannon . | . . . . Launcher 18 | . . . 18 Special . | . . . . Kinetic 173 | 10 112 48 3 Thermal 5 | . . . 5 Explosive 18 | . . . 18 Electromagnetic . | . . . . Robot Hit Streak 11 | 3 11 8 6 Robot Miss Streak 9 | 1 9 2 . Penetration Max . | . . . . Secondary Targets 1 | . . 1 . Max Gunslinging Chain 1 | . . 1 . Shots Hit Robots 138 | 6 66 36 30 Core Hits 77 | 4 32 15 26 Critical Kills . | . . . . Critical Parts Destroyed . | . . . . Critical Strikes 1 | . . . 1 Burn 1 | . . . 1 Melee Attacks 84 | . . . 84 Impact . | . . . . Slashing 84 | . . . 84 Piercing . | . . . . Sneak Attacks 3 | . . . 3 Combat Hostiles . | . . . . Follow-up Attacks 6 | . . . 6 Damage Inflicted 2745 | 58 754 363 1570 Guns 1173 | 58 735 351 29 Cannons . | . . . . Explosions 513 | . . . 513 Melee 1028 | . . . 1028 Ramming 31 | . 19 12 . Kinetic 1160 | 58 735 351 16 Thermal 13 | . . . 13 Explosive 513 | . . . 513 Electromagnetic . | . . . . Impact . | . . . . Slashing 1028 | . . . 1028 Piercing . | . . . . Highest Corruption 2 | . 2 2 2 Average Corruption 2 | . 2 2 2 Corruption Purged . | . . . . Corruption Blocked . | . . . . Effects 49 | . 12 14 23 Message Errors 9 | . 2 3 4 Matter Fused 18 | . 4 4 10 Heat Flow Errors 4 | . 1 . 3 Energy Discharges 7 | . 1 3 3 Parts Rejected 1 | . . . 1 Parts Fused 1 | . . . 1 Data Loss (minor) 7 | . 3 3 1 Data Loss (major) 1 | . 1 . . Misfires 1 | . . 1 . Overload Shots . | . . . . Overflow Damage 21 | . . . 21 Projectiles . | . . . . Explosions . | . . . . Melee 21 | . . . 21 Knockbacks . | . . . . Impact . | . . . . Kinetic . | . . . . Secondary . | . . . . Self-Inflicted Damage 15 | . . . 15 Shots 1 | . . . 1 Rammed 10 | . 6 4 . Targets Rammed 11 | . 6 5 . Kicked . | . . . . Crushed 1 | . . 1 . Highest Temperature 262 | . 203 103 262 Average Temperature 44 | . 36 38 97 Received Heat Transfer 546 | . 201 246 99 Siege Activations . | . . . . Robots Corrupted . | . . . . Combat Hostiles . | . . . . Parts Fried . | . . . . Impact Corruptions . | . . . . Robots Melted . | . . . . Combat Hostiles . | . . . . Parts Melted . | . . . . Heat Transferred 111 | . . . 111 Parts Sabotaged . | . . . . Parts Stolen . | . . . . Parts Stripped . | . . . . Power Chain Reactions . | . . . . Alert | -11 -10 -10 -10 ------- Run | Yrd Mat Min Sub Peak Influence 272 | 10 272 80 . Initial 6 | . 6 . . Average 62 | 3 72 54 . Maximum Alert Level 1 | . 1 . . Low Security (%) 92 | 100 86 100 . Level 1 7 | . 13 . . Level 2 . | . . . . Level 3 . | . . . . Level 4 . | . . . . Level 5 . | . . . . High Security . | . . . . Max Security . | . . . . Squads Dispatched 2 | . 2 . . Investigation 2 | . 2 . . Extermination . | . . . . Reinforcement . | . . . . Assault . | . . . . Garrison . | . . . . Intercept . | . . . . Searches Triggered . | . . . . Construction Impeded . | . . . . Haulers Reinforced . | . . . . Active Scanning Responses . | . . . . Cargo Convoy Interrupts . | . . . . Stealth | -11 -10 -10 -10 --------- Run | Yrd Mat Min Sub Distress Signals 3 | . 3 . . Communications Jammed . | . . . . Distress Signals . | . . . . Times Spotted 50 | . 21 9 20 Peak Tracking Total 4 | . 4 3 4 Tactical Retreats 2 | . . 1 1 Traps | -11 -10 -10 -10 ------- Run | Yrd Mat Min Sub Traps Triggered 5 | . 1 . 4 Indirectly . | . . . . Trap Hack Attempts . | . . . . Triggered . | . . . . Disarmed 1 | . 1 . . Reprogrammed . | . . . . Reused . | . . . . Traps Extracted . | . . . . Installed . | . . . . Triggered . | . . . . Machines | -11 -10 -10 -10 ---------- Run | Yrd Mat Min Sub Machines Disabled . | . . . . Max in Single Turn . | . . . . Machines Repaired . | . . . . Machines Dismantled . | . . . . Machines Sabotaged . | . . . . Overloaded Fab Kills . | . . . . Hacking | -11 -10 -10 -10 --------- Run | Yrd Mat Min Sub Machines Accessed 9 | . 9 . . Terminals 7 | . 7 . . Fabricators . | . . . . Repair Stations 1 | . 1 . . Recycling Units 1 | . 1 . . Scanalyzers . | . . . . Garrison Access . | . . . . Total Hacks 27 | . 27 . . Successful 12 | . 12 . . Failed 15 | . 15 . . Catastrophic 7 | . 7 . . Database Lockouts . | . . . . Manual 18 | . 18 . . Terminals 21 | . 21 . . Fabricators . | . . . . Repair Stations 4 | . 4 . . Recycling Units 2 | . 2 . . Scanalyzers . | . . . . Garrison Access . | . . . . Terminal Hacks 9 | . 9 . . Part Schematic 2 | . 2 . . Robot Analysis 4 | . 4 . . Unreport Threat 2 | . 2 . . Disarm Traps 1 | . 1 . . Fabricator Hacks . | . . . . Repair Station Hacks 1 | . 1 . . Scan Component 1 | . 1 . . Recycling Unit Hacks 1 | . 1 . . Retrieve Components 1 | . 1 . . Scanalyzer . | . . . . Garrison Access Hacks . | . . . . Unauthorized Hacks 1 | . 1 . . Terminals . | . . . . Fabricators . | . . . . Repair Stations . | . . . . Recycling Units 1 | . 1 . . Tunnel 1 | . 1 . . Scanalyzers . | . . . . Garrison Access . | . . . . Data Cores Recovered . | . . . . Used . | . . . . Hacking Detections 9 | . 9 . . Full Trace Events 1 | . 1 . . Feedback Events . | . . . . Feedback Blocked . | . . . . Robot Schematics Acquired . | . . . . Robots Built . | . . . . Authchips . | . . . . Time . | . . . . Total Robot Build Rating . | . . . . Part Schematics Acquired 2 | . 2 . . Parts Built . | . . . . Authchips . | . . . . Time . | . . . . Total Part Build Rating . | . . . . Parts Repaired . | . . . . Time . | . . . . Parts Recycled . | . . . . Recycled Matter . | . . . . Retrieved Matter . | . . . . Retrieved Components 1 | . 1 . . Parts Scanalyzed . | . . . . Part Schematics Acquired . | . . . . Parts Damaged . | . . . . Bothacking | -11 -10 -10 -10 ------------ Run | Yrd Mat Min Sub Used RIF Installer . | . . . . Robots Hacked . | . . . . Non-combat . | . . . . Combat . | . . . . Robot Hacks Applied . | . . . . Relay Couplers Released . | . . . . Fabnet Peak Effective % . | . . . . Robots Rewired . | . . . . Allies Hacked . | . . . . Hacks Repelled . | . . . . Allies | -11 -10 -10 -10 -------- Run | Yrd Mat Min Sub Total Allies . | . . . . Largest Group . | . . . . Highest-Rated Group . | . . . . Highest-Rated Ally . | . . . . Total Orders . | . . . . Ally Attacks . | . . . . Total Damage . | . . . . Kills . | . . . . Allies Corrupted . | . . . . Allies Melted . | . . . . Intel | -11 -10 -10 -10 ------- Run | Yrd Mat Min Sub Robot Analysis Total 4 | . 4 . . Derelict Logs Recovered 4 | . . 2 2 Drone Launches . | . . . . Drone Recoveries . | . . . . Exploration | -11 -10 -10 -10 ------------- Run | Yrd Mat Min Sub Turns Passed 4259 | 114 1225 761 2159 Spaces Moved 2023 | 53 634 195 1141 Core 2 | 2 . . . Treads 2021 | 51 634 195 1141 Legs . | . . . . Wheels . | . . . . Hover . | . . . . Flight . | . . . . Fastest Speed 50 | 50 160 160 160 Average Speed 159 | 155 160 160 160 Slowest Speed 240 | 160 160 160 240 Overloaded Moves . | . . . . Propulsion Burnouts . | . . . . Robots Hopped . | . . . . Cave-ins Triggered . | . . . . Exploration Rate (%) 54 | 4 97 54 63 Regions Visited 3 Branch Regions 2 Pre-discovered Areas 3 | . 1 1 1 Known Exits Taken . | . . . . Unknown Exits Taken 3 | 1 1 1 . Scrap Searched 6 | . . 2 4 Spaces Dug 26 | . . . 26 Terrain Destroyed 89 | . . . 89 Melee 4 | . . . 4 Projectile . | . . . . AOE 85 | . . . 85 Terrain Rammed . | . . . . Walls Destroyed . | . . . . Machines Disabled . | . . . . Actions | -11 -10 -10 -10 --------- Run | Yrd Mat Min Sub Total 2780 | 72 742 602 1364 Wait 489 | 2 26 367 94 Move 2020 | 52 633 194 1141 Hop . | . . . . Pick Up 30 | 6 12 3 9 Fast Attach 10 | 7 . 2 1 Attach 8 | . 1 1 6 Detach . | . . . . Swap 18 | . 3 1 14 Drop 12 | . 5 5 2 Fire 110 | 5 56 24 25 Melee 72 | . . . 72 Ram . | . . . . Kick . | . . . . Crush 11 | . 6 5 . Escape Stasis . | . . . . Rewire . | . . . . Trap . | . . . . Miscellaneous . | . . . . Route ------- -11/Scrapyard -10/Materials (discovered 6 exits: [*Mat x3] / [*Min x2] / [*Sub]) -10/Mines -10/Subcaves (discovered 2 exits: [*Mat] / Rec) History --------- Turn | Location | Event 56 | -11/Scrapyard | Discovered new exit (range 15) 115 | -11/Scrapyard | Entered Materials 184 | -10/Materials | Discovered new exit (range 12) 306 | -10/Materials | Build established: Mutant 341 | -10/Materials | Discovered new exit (range 8) 471 | -10/Materials | Discovered new exit (range 13) 653 | -10/Materials | Discovered new exit (range 7) 1073 | -10/Materials | Discovered new exit (range 4) 1287 | -10/Materials | Discovered new exit (range 9) 1340 | -10/Materials | Entered Mines 1554 | -10/Mines | Learned Materials security intel 2030 | -10/Mines | Discovered new exit (range 5) 2101 | -10/Mines | Entered Subcaves 2260 | -10/Subcaves | A swath of the cavern ceiling suddenly collapsed 2326 | -10/Subcaves | Shifting Twisted Machinery released Sub. Power Source 2327 | -10/Subcaves | Shifting Twisted Machinery released Sub. Machine Gun 2663 | -10/Subcaves | Ambushed by Subdweller buried in earth 2831 | -10/Subcaves | Identified exit to Recycling 2861 | -10/Subcaves | Shifting Twisted Machinery released Sub. Machine Gun 2869 | -10/Subcaves | Shifting Twisted Machinery released Mak. Axe 3411 | -10/Subcaves | Disturbed a concealed Subdweller 3425 | -10/Subcaves | Core integrity fell below 50% 3720 | -10/Subcaves | Discovered new exit (range 15) 3956 | -10/Subcaves | Learned location of Zion (-6) 3956 | -10/Subcaves | Met a Zionite searching for "candidates" 3994 | -10/Subcaves | Shifting Twisted Machinery released Battle Cannon 3995 | -10/Subcaves | Shifting Twisted Machinery released Mak. Shrapnel Gun 4159 | -10/Subcaves | Ambushed by Subdweller buried in earth 4210 | -10/Subcaves | A Subdweller sparked back to life 4210 | -10/Subcaves | A Subdweller sparked back to life 4252 | -10/Subcaves | Core integrity fell below 20% 4260 | -10/Subcaves | Destroyed by Q5-UA0(R) with Subdweller Machine Gun Last Messages --------------- 04134_ 52-VMO(R) destroyed. 04136_ Acquired 11 matter. 04159_ PX-I0D(R) destroyed. 04160_ C7-849(R): "ARGHSUB!" 04164_ C7-849(R) suffers critical hit (Burn). 04164_ C7-849(R) destroyed. 04170_ Acquired 8 matter. 04176_ Acquired 34 matter. 04179_ System corrupted: Heat flow error (+115). 04182_ The unstable cave ceiling collapses. 04210_ DA-MOW(R) creaks and sparks as it begins to move. 04210_ 9S-9GG(R) creaks and sparks as it begins to move. 04239_ YV-OTE(R) affixes Scrap Shield Fragment to Scrap Shield. 04252_ Lgt. Nuclear Core destroyed. 04254_ Lgt. Treads destroyed. 04259_ Mak. Axe follow-up attack on YV-OTE(R). 04259_ YV-OTE(R) destroyed. Map ----- +----------------------------------------------------+ | | | | | | | | | | | | | ?????????????????????????????????????????????????? | | ?????????????????????????????????????????????????? | | ?????????????????????????????????????????????????? | | ?????????????????????????????????????????????????? | | ?????????????????????????????????????????????????? | | ?????????????????????????????????????????????????? | | ?????????????????????????????????????????????????? | | ?????????????????????????????????????????????????? | | ????????????????????????????###??????????????????? | | ???????????????????????????## #######????????????? | | ??????????????????????????## ; ; #????????????? | | ??????????????????????????# ;#????????????? | | ??????????????????????????# ! #????????????? | | ??????????????????????????##% ;#????????????? | | ???????????????????######## & & ;#####??#####?? | | ???????????????????#" "" #; #### ##? | | ???????????????????##" "" #? | | ??????????????? """##"" & [ ##? | | ??????????????? " %*"" #%& ## ## #?? | | ??????????????" ["###& "#@ ## & #### ## ##? | | ????????????????????## ""#R ### ### ### #? | | ?????????????????????# R"" #?### ## #? | | ????????????????????# "" #"##???### ### #? | | ????????????????????# ""###??????## ####?## ## | | ???????????????????## "#??#####?## ###??## | | ???????????????????# ??## ## #### | | ??????????????????#" ???# | | ??????????????????# ???# ## | | ??????????????????? ??????# #? | | ???????????###????? ?????# ## | | ?????????### #????? ??# #????# ## # | | ?????????# ""#?????#??# ###### ## ### ## | | ??????#### #????????# ## ### ##?# # | | ?????## ##??????????# ## ##?# #?# ## | | ?????# #### #????????????# [ #??# #### | | ?????# ##??## #???####?????# # #??# ### | | ?????# #????# ##### #####?# # #??# | | ?????# #????# # # #?# # #?# | | ?????# ##??## ### ## ##?## ### ## | | ?????# #### ## #???######?#### | | ?????# ### # ### #?????????????# | | ?????###### % ##### #????????????## | | ??????????# [ #???## #???????????# | | ??????????# #?## ## ## ##???????????# | +----------------------------------------------------+ Best States ------------- Heat Dissipation 25 Energy Generation 14 Energy Capacity 250 Matter Stores 300 Matter Capacity 300 Sight Range 16 Terrain Scan Density 10 Armor Coverage 150 Evasion (%) 40 Recoil Reduction 2 Item Schematics ----------------- Cargo Storage Unit | -10/Materials | Hacked Sml. Storage Unit | -10/Materials | Hacked Robot Schematics ------------------ None Fabricated ------------ Nothing Alien Tech Used ----------------- None Achievements -------------- None Challenges ------------ None Game ------ Seed LightningQuantumTendrils Manual? 0 Play Time 00:26:19 Cumulative 662.0 hours Start 2024.03.01 @ 17:03:15 End 2024.03.06 @ 20:20:22 Sessions 7 Manual Loads 0 Difficulty Rogue Special Mode None Game No. 576 Rogue 361 Adventurer 112 Explorer 103 Win Type - Total 43 Types 26/0/9/3/0/0/4/1/0 Lore% 85 Gallery% 92 Achievement% 82 Wizard Run 0 Options --------- Layout 2 ASCII 0 Keyboard 1 Movement Vi Keybinds 1 Fullscreen 2 Font 48/Terminus++ Map View 50x44 Zoom Use 0% Tactical HUD 1 Map Filters NONE Filters NONE Steam 1 RUN: 6201b45f-9b78-434b-9c48-18520a0fcbc4